fUST/lending_fUST_20240228
["ID","MTS","AMOUNT","RATE_DAILY","PERIOD"]
[315475224,1709069442920,-1033.33,0.00019726,2]
[315475225,1709069442929,-1156.6,0.00019726,2]
[315475226,1709069442939,-1675.5,0.00019726,2]
[315475227,1709069442948,-4302.55,0.00019726,2]
[315475228,1709069442957,-500.0,0.00019726,2]
[315475230,1709069442966,-520.15,0.00019726,2]
[315475232,1709069442976,-13619.08,0.00019726,2]
[315475233,1709069442985,-2585.56,0.00019726,2]
[315475234,1709069442994,-2254.17,0.00019726,2]
[315475235,1709069443004,-2902.8,0.00019726,2]
[315475236,1709069443014,-2191.32,0.00019726,2]
[315475237,1709069443023,-556.3,0.00019726,2]
[315475238,1709069443032,-586.77,0.00019726,2]
[315475239,1709069443042,-500.0,0.00019726,2]
[315475240,1709069443051,-678.54,0.00019726,2]
[315475241,1709069443061,-500.0,0.00019726,2]
[315475242,1709069443075,-1748.29,0.00019726,2]
[315475244,1709069443084,-500.0,0.00019735,2]
[315475246,1709069443093,-401.2234818,0.00019753,2]
[315475247,1709069443102,-500.0,0.00019874,2]
[315475249,1709069443112,-243.42764269,0.00019875,2]
[315475250,1709069443122,-620.00008791,0.0001991,2]
[315475251,1709069443131,-9135.97150373,0.0001995,2]
[315475277,1709069443387,-500.0,0.00019452,2]
[315475279,1709069443397,-500.0,0.00019726,2]
[315475282,1709069443407,-6424.0,0.0001995,2]
[315475284,1709069443419,-238.91526382,0.0001995,2]
[315475286,1709069443429,-253.26527282,0.00019999,2]
[315475288,1709069443439,-152.4185361,0.0002,2]
[315475290,1709069443449,-169.75625068,0.0002,2]
[315475292,1709069443458,-500.0,0.0002,2]
[315475294,1709069443469,-3017.51088458,0.0002,2]
[315475296,1709069443481,-348.89256572,0.0002,2]
[315475561,1709069446252,-4611.40076255,0.0002,2]
[315475837,1709070632404,-281.47879286,0.00018861,2]
[315475838,1709070632413,-155.16602765,0.00018862,2]
[315475839,1709070632423,-248.47900082,0.000189,2]
[315475840,1709070632434,-13525.38934902,0.00019177,2]
[315475841,1709070632445,-167.6391983,0.00019178,2]
[315475842,1709070632454,-500.0,0.00019178,2]
[315475843,1709070632464,-500.0,0.00019178,2]
[315475844,1709070632474,-500.0,0.00019178,2]
[315475845,1709070632484,-500.85999377,0.00019178,2]
[315475846,1709070632493,-502.42020174,0.00019178,2]
[315475847,1709070632502,-500.0,0.00019178,2]
[315475848,1709070632512,-500.0,0.00019178,2]
[315475849,1709070632521,-698.58,0.00019178,2]
[315475850,1709070632531,-500.0,0.00019178,2]
[315475851,1709070632541,-500.0,0.00019178,2]
[315475852,1709070632550,-500.0,0.00019178,2]
[315475853,1709070632560,-500.0,0.00019178,2]
[315475854,1709070632570,-486.0,0.00019178,2]
[315475855,1709070632579,-500.0,0.00019178,2]
[315475856,1709070632588,-902.01,0.00019178,2]
[315475857,1709070632597,-500.0,0.00019178,2]
[315475858,1709070632606,-500.0,0.00019178,2]
[315475859,1709070632615,-500.0,0.00019178,2]
[315475860,1709070632626,-500.0,0.00019178,2]
[315475861,1709070632635,-500.0,0.00019178,2]
[315475862,1709070632645,-918.23,0.00019178,2]
[315475863,1709070632655,-500.0,0.00019178,2]
[315475864,1709070632664,-500.0,0.00019178,2]
[315475865,1709070632673,-585.38206231,0.00019178,2]
[315475866,1709070632682,-797.54,0.00019178,2]
[315475867,1709070632691,-174.34400095,0.00019178,2]
[315475868,1709070632700,-521.99192232,0.00019178,2]
[315475869,1709070632709,-500.0,0.00019178,2]
[315475870,1709070632718,-155.0,0.00019178,2]
[315475871,1709070632727,-500.0,0.00019178,2]
[315475872,1709070632736,-500.0,0.00019178,2]
[315475873,1709070632745,-500.0,0.00019178,2]
[315475874,1709070632754,-1078.8,0.00019178,2]
[315475875,1709070632764,-500.0,0.00019178,2]
[315475876,1709070632773,-500.6215968,0.00019178,2]
[315475877,1709070632783,-500.0,0.00019178,2]
[315475878,1709070632792,-500.0,0.00019178,2]
[315475879,1709070632801,-500.0,0.00019178,2]
[315475880,1709070632810,-500.0,0.00019178,2]
[315475881,1709070632819,-500.0,0.00019178,2]
[315475882,1709070632828,-500.58161867,0.00019178,2]
[315475883,1709070632837,-500.45932611,0.00019178,2]
[315475884,1709070632846,-500.0,0.00019178,2]
[315475885,1709070632855,-500.0,0.00019178,2]
[315475886,1709070632865,-500.0,0.00019178,2]
[315475887,1709070632874,-500.0,0.00019178,2]
[315475888,1709070632883,-500.0,0.00019178,2]
[315475889,1709070632893,-500.0,0.00019178,2]
[315475890,1709070632902,-1466.02,0.00019178,2]
[315475891,1709070632911,-500.0,0.00019178,2]
[315475892,1709070632920,-500.0,0.00019178,2]
[315475893,1709070632930,-500.0,0.00019178,2]
[315475894,1709070632939,-500.0,0.00019178,2]
[315475895,1709070632948,-500.0,0.00019178,2]
[315475896,1709070632958,-1033.11,0.00019178,2]
[315475897,1709070632968,-115.22342795,0.00019178,2]
[315475898,1709070632982,-1680.59657205,0.00019178,2]
[315475899,1709070632991,-3999.80868239,0.00019178,2]
[315475941,1709070638343,-1249.18437681,0.00019178,2]
[315475952,1709070638443,-1920.0369408,0.00019178,2]
[315475955,1709070638453,-1459.57,0.00019178,2]
[315475956,1709070638463,-500.0,0.00019178,2]
[315475959,1709070638473,-500.0,0.00019178,2]
[315475961,1709070638482,-1408.91,0.00019178,2]
[315475963,1709070638491,-99.38241356,0.00019178,2]
[315475965,1709070638504,-3295.73758644,0.00019178,2]
[315475967,1709070638513,-330.67458992,0.00019178,2]
[315475995,1709070641607,-169.32541008,0.00019178,2]
[315475996,1709070641616,-500.0,0.00019178,2]
[315475997,1709070641625,-500.0,0.00019178,2]
[315475998,1709070641635,-500.0,0.00019178,2]
[315475999,1709070641644,-1262.30924564,0.00019178,2]
[315476000,1709070641672,-1170.69075436,0.00019178,2]
[315476001,1709070641681,-3548.9593693,0.00019178,2]
[315476002,1709070641692,-11188.1906307,0.00019178,2]
[315476003,1709070641701,-2500.78,0.00019178,2]
[315476004,1709070641710,-973.13,0.00019178,2]
[315476005,1709070641719,-1199.04,0.00019178,2]
[315476006,1709070641729,-500.0,0.00019178,2]
[315476007,1709070641739,-904.16,0.00019178,2]
[315476008,1709070641747,-1466.06,0.00019178,2]
[315476009,1709070641757,-2262.36,0.00019178,2]
[315476010,1709070641766,-3938.18,0.00019178,2]
[315476011,1709070641775,-500.0,0.00019178,2]
[315476012,1709070641784,-2113.57,0.00019178,2]
[315476013,1709070641795,-2539.95,0.00019178,2]
[315476014,1709070641804,-11916.69,0.00019178,2]
[315476015,1709070641814,-2031.94,0.00019178,2]
[315476016,1709070641823,-475.99993128,0.00019178,2]
[315476017,1709070641833,-513.42,0.00019178,2]
[315476018,1709070641842,-500.0,0.00019178,2]
[315476019,1709070641851,-500.0,0.00019178,2]
[315476020,1709070641860,-1529.75,0.00019178,2]
[315476021,1709070641869,-593.72,0.00019178,2]
[315476022,1709070641879,-500.0,0.00019178,2]
[315476023,1709070641889,-500.0,0.00019178,2]
[315476024,1709070641899,-162.218823,0.00019178,2]
[315476025,1709070641908,-166.666666,0.00019178,2]
[315476026,1709070641917,-13637.70934583,0.00019242,3]
[315476033,1709070644425,-1000.0,0.00019242,3]
[315476034,1709070644440,-1477.76177612,0.00019242,3]
[315476035,1709070644775,-2569.56283739,0.00019242,3]
[315476037,1709070644787,-3573.743925,0.00019242,3]
[315476038,1709070644799,-264.46625028,0.00019242,3]
[315476159,1709070856978,469.48213171,0.000176,2]
[315476160,1709070897672,26595.05205519,0.000176,2]
[315476161,1709070897710,39030.57515734,0.000176,2]
[315476162,1709070904674,65625.62721253,0.000176,2]
[315476163,1709070938678,18994.97320985,0.000176,2]
[315476164,1709070958688,18994.97320985,0.000176,2]
[315476166,1709070976714,18994.97320985,0.000176,2]
[315476167,1709070998800,18994.97320985,0.000176,2]
[315476168,1709071017195,18994.97320985,0.000176,2]
[315476169,1709071041200,18994.97320985,0.000176,2]
[315476170,1709071059193,18994.97320985,0.000176,2]
[315476171,1709071075199,18994.97320985,0.000176,2]
[315476173,1709071093207,2647.1432636,0.000176,2]
[315476174,1709071093237,8615.0,0.000176,2]
[315476175,1709071093265,7732.82994625,0.000176,2]
[315476176,1709071115714,1267.17005375,0.000176,2]
[315476233,1709071832516,-300.0,0.00017598,2]
[315476235,1709071832525,-11271.15779085,0.00017599,2]
[315476236,1709071832534,-17727.8031561,0.000176,2]
[315476238,1709071832543,-956.78318647,0.000189,2]
[315476240,1709071832552,-11366.57043736,0.00018998,2]
[315476242,1709071832563,-438.68756988,0.00019178,2]
[315476245,1709071832572,-500.0,0.00019178,2]
[315476246,1709071832582,-500.51038227,0.00019178,2]
[315476248,1709071832590,-500.0,0.00019178,2]
[315476251,1709071832600,-947.76,0.00019178,2]
[315476254,1709071832610,-500.0,0.00019178,2]
[315476256,1709071832619,-500.0,0.00019178,2]
[315476258,1709071832627,-500.0,0.00019178,2]
[315476262,1709071832648,-154.45640232,0.00019178,2]
[315476264,1709071832659,-500.0,0.00019178,2]
[315476266,1709071832668,-500.0,0.00019178,2]
[315476268,1709071832678,-1033.85,0.00019178,2]
[315476270,1709071832687,-1472.25,0.00019178,2]
[315476272,1709071832697,-500.0,0.00019178,2]
[315476274,1709071832706,-500.0,0.00019178,2]
[315476276,1709071832715,-500.0,0.00019178,2]
[315476278,1709071832724,-500.0,0.00019178,2]
[315476280,1709071832734,-526.86486475,0.00019178,2]
[315476282,1709071832744,-500.0,0.00019178,2]
[315476284,1709071832754,-500.0,0.00019178,2]
[315476286,1709071832763,-879.97,0.00019178,2]
[315476288,1709071832772,-528.23713786,0.00019178,2]
[315476290,1709071832781,-764.31,0.00019178,2]
[315476292,1709071832791,-500.0,0.00019178,2]
[315476294,1709071832800,-155.0,0.00019178,2]
[315476296,1709071832810,-500.0,0.00019178,2]
[315476298,1709071832820,-500.0,0.00019178,2]
[315476300,1709071832832,-669.47,0.00019178,2]
[315476303,1709071832842,-500.0,0.00019178,2]
[315476305,1709071832851,-500.0,0.00019178,2]
[315476306,1709071832862,-5422.31462014,0.00019178,2]
[315476309,1709071832876,-1396.20802062,0.00019178,2]
[315476312,1709071832895,-497.96942966,0.00019178,2]
[315476314,1709071832908,-3589.94119834,0.00019178,2]
[315476587,1709071838477,-1404.94,0.00019178,2]
[315476588,1709071838488,-500.0,0.00019178,2]
[315476589,1709071838498,-500.0,0.00019178,2]
[315476590,1709071838508,-2025.51,0.00019178,2]
[315476591,1709071838518,-568.99,0.00019178,2]
[315476592,1709071838527,-500.0,0.00019178,2]
[315476593,1709071838536,-1947.28,0.00019178,2]
[315476594,1709071838546,-990.07,0.00019178,2]
[315476595,1709071838555,-500.0,0.00019178,2]
[315476596,1709071838565,-1398.75,0.00019178,2]
[315476597,1709071838574,-1466.01,0.00019178,2]
[315476598,1709071838583,-12565.96487566,0.00019178,2]
[315476599,1709071838600,-1017.76,0.00019178,2]
[315476612,1709071841775,-539.37512434,0.00019178,2]
[315476613,1709071841784,-500.0,0.00019178,2]
[315476614,1709071841793,-1350.2,0.00019178,2]
[315476615,1709071841802,-500.0,0.00019178,2]
[315476616,1709071841811,-500.0,0.00019178,2]
[315476617,1709071841822,-432.41153834,0.00019178,2]
[315476618,1709071841837,-80.64173147,0.00019178,2]
[315476619,1709071841846,-1149.08,0.00019178,2]
[315476620,1709071841855,-6913.44,0.00019178,2]
[315476621,1709071841864,-500.0,0.00019178,2]
[315476622,1709071841874,-500.0,0.00019178,2]
[315476623,1709071841884,-500.0,0.00019178,2]
[315476624,1709071841893,-500.0,0.00019178,2]
[315476625,1709071841904,-3253.66,0.00019178,2]
[315476626,1709071841913,-500.0,0.00019178,2]
[315476627,1709071841923,-1970.25059941,0.00019178,2]
[315476628,1709071841935,-426.32940059,0.00019178,2]
[315476629,1709071841944,-500.0,0.00019178,2]
[315476630,1709071841954,-866.49,0.00019178,2]
[315476631,1709071841963,-500.0,0.00019178,2]
[315476632,1709071841972,-953.41,0.00019178,2]
[315476633,1709071841982,-2434.12,0.00019178,2]
[315476634,1709071841991,-2331.78,0.00019178,2]
[315476635,1709071842000,-3774.09,0.00019178,2]
[315476636,1709071842009,-10965.73,0.00019178,2]
[315476637,1709071842018,-2168.1,0.00019178,2]
[315476638,1709071842028,-1410.91,0.00019178,2]
[315476639,1709071842037,-166.666666,0.00019178,2]
[315476640,1709071842046,-162.218823,0.00019178,2]
[315476641,1709071842056,-250.9434928,0.00019242,2]
[315476642,1709071842065,-500.0,0.00019329,2]
[315476643,1709071842075,-500.0,0.00019341,2]
[315476644,1709071842084,-500.0,0.00019341,2]
[315476645,1709071842095,-500.0,0.00019341,2]
[315476646,1709071842104,-500.0,0.00019341,2]
[315476647,1709071842113,-500.0,0.00019341,2]
[315476648,1709071842122,-500.0,0.00019341,2]
[315476649,1709071842132,-500.0,0.00019341,2]
[315476650,1709071842141,-85375.81135168,0.00019342,2]
[315476653,1709071843856,-25966.83639326,0.00019342,2]
[315476654,1709071846580,-709.35863121,0.00019342,2]
[315480429,1709073037768,-1646.27226159,0.00017599,2]
[315480448,1709073040886,-6883.53332373,0.00017599,2]
[315480450,1709073040898,-2741.35220553,0.00017599,2]
[315480452,1709073040907,-14521.68943019,0.000176,2]
[315480454,1709073040916,-620.00000439,0.00018868,2]
[315480456,1709073040925,-637.85545765,0.000189,2]
[315480458,1709073040934,-1094.73,0.00019,2]
[315480460,1709073040943,-1777.90713751,0.00019175,4]
[315480462,1709073040952,-1005.15654509,0.00019177,2]
[315480464,1709073040961,-501.7060502,0.00019178,2]
[315480466,1709073040972,-501.87588497,0.00019178,2]
[315480468,1709073040982,-500.0,0.00019178,2]
[315480470,1709073040992,-500.0,0.00019178,2]
[315480472,1709073041001,-500.0,0.00019178,2]
[315480474,1709073041010,-388.69595869,0.00019178,2]
[315480476,1709073041020,-500.0,0.00019178,2]
[315480478,1709073041030,-500.0,0.00019178,2]
[315480479,1709073041041,-500.0,0.00019178,2]
[315480482,1709073041051,-500.0,0.00019178,2]
[315480484,1709073041062,-500.0,0.00019178,2]
[315480485,1709073041073,-500.0,0.00019178,2]
[315480487,1709073041083,-500.0,0.00019178,2]
[315480490,1709073041093,-523.6195752,0.00019178,2]
[315480492,1709073041102,-500.0,0.00019178,2]
[315480493,1709073041113,-500.0,0.00019178,2]
[315480496,1709073041122,-500.0,0.00019178,2]
[315480497,1709073041133,-500.0,0.00019178,2]
[315480499,1709073041144,-500.0,0.00019178,2]
[315480502,1709073041154,-500.0,0.00019178,2]
[315480503,1709073041165,-500.0,0.00019178,2]
[315480504,1709073041176,-500.0,0.00019178,2]
[315480505,1709073041186,-496.38663339,0.00019178,2]
[315480506,1709073041196,-500.0,0.00019178,2]
[315480507,1709073041210,-500.0,0.00019178,2]
[315480508,1709073041220,-500.0,0.00019178,2]
[315480509,1709073041231,-500.0,0.00019178,2]
[315480510,1709073041241,-500.0,0.00019178,2]
[315480511,1709073041253,-500.0,0.00019178,2]
[315480512,1709073041263,-346.64806544,0.00019178,2]
[315480513,1709073041272,-500.0,0.00019178,2]
[315480514,1709073041285,-500.0,0.00019178,2]
[315480515,1709073041297,-1352.12,0.00019178,2]
[315480516,1709073041308,-500.0,0.00019178,2]
[315480517,1709073041319,-500.0,0.00019178,2]
[315480518,1709073041329,-500.0,0.00019178,2]
[315480519,1709073041338,-641.58,0.00019178,2]
[315480520,1709073041348,-500.0,0.00019178,2]
[315480521,1709073041357,-500.0,0.00019178,2]
[315480522,1709073041366,-500.0,0.00019178,2]
[315480523,1709073041375,-500.0,0.00019178,2]
[315480524,1709073041384,-126.60980538,0.00019178,2]
[315480526,1709073041397,-373.39019462,0.00019178,2]
[315480528,1709073041406,-268.45713728,0.00019178,2]
[315480530,1709073041415,-500.0,0.00019178,2]
[315480532,1709073041425,-500.0,0.00019178,2]
[315480534,1709073041434,-517.52,0.00019178,2]
[315480536,1709073041444,-500.0,0.00019178,2]
[315480538,1709073041453,-500.0,0.00019178,2]
[315480540,1709073041462,-500.0,0.00019178,2]
[315480542,1709073041471,-500.0,0.00019178,2]
[315480544,1709073041480,-500.0,0.00019178,2]
[315480546,1709073041489,-500.0,0.00019178,2]
[315480548,1709073041499,-500.0,0.00019178,2]
[315480550,1709073041508,-500.0,0.00019178,2]
[315480552,1709073041517,-500.0,0.00019178,2]
[315480554,1709073041526,-500.0,0.00019178,2]
[315480556,1709073041535,-910.26,0.00019178,2]
[315480558,1709073041544,-500.0,0.00019178,2]
[315480560,1709073041554,-732.46,0.00019178,2]
[315480562,1709073041563,-500.0,0.00019178,2]
[315480564,1709073041573,-2213.95,0.00019178,2]
[315480566,1709073041583,-155.0,0.00019178,2]
[315480568,1709073041593,-500.5519328,0.00019178,2]
[315480570,1709073041603,-500.0,0.00019178,2]
[315480572,1709073041612,-501.09881645,0.00019178,2]
[315480574,1709073041622,-500.0,0.00019178,2]
[315480576,1709073041631,-835.82,0.00019178,2]
[315480578,1709073041640,-500.0,0.00019178,2]
[315480580,1709073041649,-500.87900655,0.00019178,2]
[315480582,1709073041658,-500.0,0.00019178,2]
[315480584,1709073041669,-501.27258164,0.00019178,2]
[315480587,1709073041680,-500.0,0.00019178,2]
[315480588,1709073041690,-3727.94,0.00019178,2]
[315480591,1709073041700,-501.62032303,0.00019178,2]
[315480593,1709073041709,-1446.91,0.00019178,2]
[315480595,1709073041718,-1941.11,0.00019178,2]
[315480596,1709073041727,-500.0,0.00019178,2]
[315480599,1709073041737,-500.0,0.00019178,2]
[315480601,1709073041746,-500.0,0.00019178,2]
[315480602,1709073041755,-500.0,0.00019178,2]
[315480604,1709073041764,-500.0,0.00019178,2]
[315480607,1709073041773,-1866.14,0.00019178,2]
[315480608,1709073041782,-500.0,0.00019178,2]
[315480611,1709073041791,-500.0,0.00019178,2]
[315480613,1709073041800,-1023.16,0.00019178,2]
[315480615,1709073041810,-500.0,0.00019178,2]
[315480617,1709073041819,-1404.93,0.00019178,2]
[315480619,1709073041829,-13818.5,0.00019178,2]
[315480620,1709073041838,-1765.62,0.00019178,2]
[315480623,1709073041848,-908.27,0.00019178,2]
[315480624,1709073041858,-1340.47,0.00019178,2]
[315480627,1709073041867,-500.0,0.00019178,2]
[315480628,1709073041877,-500.0,0.00019178,2]
[315480630,1709073041887,-500.0,0.00019178,2]
[315480633,1709073041896,-1352.44,0.00019178,2]
[315480634,1709073041907,-6625.38,0.00019178,2]
[315480636,1709073041918,-500.0,0.00019178,2]
[315480639,1709073041927,-1101.2,0.00019178,2]
[315480641,1709073041936,-500.0,0.00019178,2]
[315480642,1709073041945,-3118.09,0.00019178,2]
[315480645,1709073041955,-500.0,0.00019178,2]
[315480646,1709073041964,-500.0,0.00019178,2]
[315480648,1709073041973,-500.0,0.00019178,2]
[315480651,1709073041982,-500.0,0.00019178,2]
[315480652,1709073041991,-500.0,0.00019178,2]
[315480654,1709073042001,-504.38773086,0.00019178,2]
[315480656,1709073042010,-500.0,0.00019178,2]
[315480658,1709073042020,-990.78,0.00019178,2]
[315480661,1709073042029,-2234.63,0.00019178,2]
[315480663,1709073042038,-500.0,0.00019178,2]
[315480665,1709073042047,-501.17188892,0.00019178,2]
[315480667,1709073042056,-10612.99,0.00019178,2]
[315480668,1709073042065,-2296.72,0.00019178,2]
[315480671,1709073042074,-500.0,0.00019178,2]
[315480672,1709073042083,-2436.87,0.00019178,2]
[315480674,1709073042092,-500.0,0.00019178,2]
[315480675,1709073042102,-913.69,0.00019178,2]
[315480676,1709073042112,-166.666666,0.00019178,2]
[315480677,1709073042122,-270.49365166,0.00019232,2]
[315480678,1709073042131,-10967.56256094,0.00019241,2]
[315480679,1709073042140,-500.0,0.00019241,2]
[315480680,1709073042149,-187.56,0.00019241,2]
[315480681,1709073042158,-9904.54940837,0.00019242,2]
[315480682,1709073042171,-2116.40567817,0.00019242,2]
[315480684,1709073042182,-1887.35204478,0.00019242,2]
[315480701,1709073042860,-4785.57958188,0.00019242,2]
[315481020,1709073045777,-500.0,0.00019242,2]
[315481026,1709073045829,-1505.21454803,0.00019242,2]
[315481833,1709074231913,-3680.99553926,0.00018073,2]
[315481835,1709074231925,-858.87844997,0.00018073,2]
[315481841,1709074231970,-1332.3992198,0.00018073,2]
[315481843,1709074231979,-1154.9602321,0.00018074,2]
[315481845,1709074231988,-2381.48350218,0.00018192,2]
[315481934,1709074237831,-17620.00496932,0.00018192,2]
[315481936,1709074237842,-151.60364395,0.000188,2]
[315481938,1709074237851,-425.23697176,0.000189,2]
[315481940,1709074237861,-821.59375019,0.00019078,2]
[315481942,1709074237870,-258118.28856575,0.00019142,2]
[315482256,1709074241094,-4907.09,0.00019142,2]
[315482264,1709074241166,-12974.62143425,0.00019142,2]
[315482267,1709074241176,-500.0,0.00019178,2]
[315482269,1709074241186,-500.0,0.00019178,2]
[315482272,1709074241196,-614.85,0.00019178,2]
[315482275,1709074241205,-500.0,0.00019178,2]
[315482278,1709074241214,-2416.81,0.00019178,2]
[315482280,1709074241223,-500.0,0.00019178,2]
[315482283,1709074241232,-973.36,0.00019178,2]
[315482286,1709074241241,-500.0,0.00019178,2]
[315482288,1709074241250,-1383.74,0.00019178,2]
[315482290,1709074241258,-253.47848265,0.00019178,2]
[315482292,1709074241268,-500.0,0.00019178,2]
[315482294,1709074241277,-500.0,0.00019178,2]
[315482296,1709074241287,-500.0,0.00019178,2]
[315482298,1709074241296,-348.50532921,0.00019178,2]
[315482299,1709074241305,-500.0,0.00019178,2]
[315482301,1709074241315,-500.0,0.00019178,2]
[315482303,1709074241324,-500.0,0.00019178,2]
[315482305,1709074241334,-500.0,0.00019178,2]
[315482307,1709074241344,-500.0,0.00019178,2]
[315482309,1709074241354,-500.0,0.00019178,2]
[315482311,1709074241363,-500.0,0.00019178,2]
[315482313,1709074241373,-500.0,0.00019178,2]
[315482315,1709074241384,-500.0,0.00019178,2]
[315482317,1709074241393,-500.0,0.00019178,2]
[315482319,1709074241403,-500.0,0.00019178,2]
[315482321,1709074241413,-870.43,0.00019178,2]
[315482323,1709074241422,-500.0,0.00019178,2]
[315482325,1709074241432,-949.03,0.00019178,2]
[315482327,1709074241441,-500.0,0.00019178,2]
[315482329,1709074241451,-500.0,0.00019178,2]
[315482331,1709074241461,-500.0,0.00019178,2]
[315482333,1709074241470,-501.89355581,0.00019178,2]
[315482335,1709074241479,-761.93,0.00019178,2]
[315482337,1709074241488,-187.33386723,0.00019178,2]
[315482339,1709074241498,-500.0,0.00019178,2]
[315482341,1709074241507,-500.0,0.00019178,2]
[315482343,1709074241516,-500.0,0.00019178,2]
[315482345,1709074241526,-500.0,0.00019178,2]
[315482347,1709074241535,-500.0,0.00019178,2]
[315482349,1709074241544,-500.0,0.00019178,2]
[315482351,1709074241553,-500.0,0.00019178,2]
[315482353,1709074241563,-297.21137709,0.00019178,2]
[315482355,1709074241572,-500.0,0.00019178,2]
[315482357,1709074241582,-500.0,0.00019178,2]
[315482359,1709074241591,-500.0,0.00019178,2]
[315482361,1709074241599,-500.0,0.00019178,2]
[315482363,1709074241608,-500.0,0.00019178,2]
[315482365,1709074241618,-500.0,0.00019178,2]
[315482366,1709074241627,-500.0,0.00019178,2]
[315482368,1709074241640,-1081.15,0.00019178,2]
[315482370,1709074241649,-500.0,0.00019178,2]
[315482372,1709074241658,-500.0,0.00019178,2]
[315482374,1709074241667,-500.0,0.00019178,2]
[315482376,1709074241676,-500.0,0.00019178,2]
[315482378,1709074241685,-500.0,0.00019178,2]
[315482380,1709074241696,-500.0,0.00019178,2]
[315482382,1709074241705,-500.0,0.00019178,2]
[315482384,1709074241715,-500.0,0.00019178,2]
[315482386,1709074241723,-500.0,0.00019178,2]
[315482388,1709074241732,-500.0,0.00019178,2]
[315482390,1709074241743,-500.0,0.00019178,2]
[315482392,1709074241751,-1386.62,0.00019178,2]
[315482394,1709074241760,-500.0,0.00019178,2]
[315482396,1709074241772,-500.0,0.00019178,2]
[315482398,1709074241781,-921.69,0.00019178,2]
[315482400,1709074241790,-2221.58,0.00019178,2]
[315482402,1709074241799,-500.0,0.00019178,2]
[315482404,1709074241808,-578.91923607,0.00019178,2]
[315482406,1709074241817,-155.0,0.00019178,2]
[315482408,1709074241826,-500.0,0.00019178,2]
[315482410,1709074241835,-500.0,0.00019178,2]
[315482412,1709074241845,-500.0,0.00019178,2]
[315482415,1709074241854,-500.0,0.00019178,2]
[315482416,1709074241864,-4126.36,0.00019178,2]
[315482418,1709074241874,-461.91857178,0.00019178,2]
[315482420,1709074241885,-578.32,0.00019178,2]
[315482422,1709074241894,-500.0,0.00019178,2]
[315482424,1709074241904,-500.0,0.00019178,2]
[315482426,1709074241914,-500.0,0.00019178,2]
[315482428,1709074241923,-2432.96,0.00019178,2]
[315482430,1709074241931,-2065.13,0.00019178,2]
[315482432,1709074241941,-500.0,0.00019178,2]
[315482434,1709074241950,-500.0,0.00019178,2]
[315482436,1709074241959,-500.0,0.00019178,2]
[315482438,1709074241968,-500.0,0.00019178,2]
[315482440,1709074241977,-500.0,0.00019178,2]
[315482442,1709074241986,-1045.09,0.00019178,2]
[315482444,1709074241995,-500.0,0.00019178,2]
[315482446,1709074242005,-1890.54,0.00019178,2]
[315482448,1709074242014,-500.0,0.00019178,2]
[315482450,1709074242023,-500.0,0.00019178,2]
[315482452,1709074242033,-197.92538761,0.00019178,2]
[315482454,1709074242042,-500.0,0.00019178,2]
[315482456,1709074242051,-622.45384115,0.00019178,2]
[315482458,1709074242060,-14682.32,0.00019178,2]
[315482460,1709074242069,-500.0,0.00019178,2]
[315482462,1709074242078,-500.0,0.00019178,2]
[315482464,1709074242087,-500.0,0.00019178,2]